bitfinex-derivatives/quotes_SOLF0:USTF0_20241212
["timestamp","ask_amount","ask_price","bid_price","bid_amount"]
[1734043051205,6.57890099,226.46,226.41,2.2078]
[1734043051399,6.57890099,226.46,226.39,6.57890099]
[1734043052605,6.57890099,226.46,226.42,2.2076]
[1734043054512,10.96600099,226.48,226.42,2.2076]
[1734043054811,3.902475,226.47,226.42,2.2076]
[1734043055001,3.902475,226.46,226.42,2.2076]
[1734043055204,10.96600099,226.48,226.42,2.2076]
[1734043055402,3.90356621,226.47,226.39,6.57890099]
[1734043055600,3.90356621,226.46,226.41,6.57890099]
[1734043055806,2.18,226.48,226.41,6.57890099]
[1734043056105,3.9038282,226.47,226.41,6.57890099]
[1734043056300,2.18,226.48,226.41,6.57890099]
[1734043056506,3.90430788,226.47,226.41,6.57890099]
[1734043056809,2.18,226.48,226.41,6.57890099]
[1734043057010,3.90419587,226.47,226.41,6.57890099]
[1734043057310,3.90419587,226.46,226.41,6.57890099]
[1734043057510,2.18,226.48,226.41,6.57890099]
[1734043057709,3.90600859,226.47,226.44,2.2074]
[1734043057909,3.90600859,226.46,226.44,2.2074]
[1734043058211,2.18,226.48,226.44,2.2074]
[1734043058408,3.90799912,226.47,226.44,2.2074]
[1734043058609,3.90799912,226.46,226.44,2.2074]
[1734043058807,2.18,226.48,226.44,2.2074]
[1734043059115,3.90804864,226.47,226.44,2.2074]
[1734043059413,2.18,226.48,226.44,2.2074]
[1734043059414,3.90804864,226.46,226.44,2.2074]
[1734043059717,3.90804864,226.45,226.44,2.2074]
[1734043060013,3.90804864,226.47,226.44,2.2074]
[1734043062114,3.90804864,226.47,226.35,2.18]
[1734043062407,3.90804864,226.47,226.39,6.57890099]
[1734043063705,3.90804864,226.47,226.43,2.2075]
[1734043063910,2.18,226.46,226.43,2.2075]
[1734043064111,3.90804864,226.45,226.43,2.2075]
[1734043066309,3.90804864,226.45,226.44,2.2075]
[1734043067418,2.18,226.47,226.44,2.2075]
[1734043067608,3.90804864,226.46,226.44,2.2075]
[1734043068110,3.90804864,226.46,226.45,2.2074]
[1734043068316,3.93504913,226.46,226.45,2.2074]
[1734043068818,2.18,226.47,226.45,2.2074]
[1734043069018,3.93529858,226.46,226.45,2.2074]
[1734043075423,3.94415374,226.46,226.45,2.2074]
[1734043083939,3.94415374,226.46,226.43,6.57890099]
[1734043083940,2.18,226.5,226.46,2.2072]
[1734043084922,2.18,226.5,226.47,2.2072]
[1734043087518,2.18,226.5,226.48,2.2071]
[1734043089832,2.2065,226.55,226.51,2.2067]
[1734043090132,6.57890099,226.56,226.49,6.57890099]
[1734043090428,6.57890099,226.56,226.54,2.2065]
[1734043090429,2.18,226.56,226.54,2.2065]
[1734043091030,2.18,226.56,226.53,2.2066]
[1734043092133,2.18,226.56,226.54,2.2064]
[1734043097236,6.57890099,226.57,226.54,2.2064]
[1734043097442,2.18,226.58,226.53,6.57890099]
[1734043098642,2.2059,226.6,226.53,6.57890099]
[1734043098837,4.3859,226.6,226.53,6.57890099]
[1734043099736,4.3859,226.6,226.55,2.2063]
[1734043100939,4.0793,226.66,226.57,6.57890099]
[1734043101139,6.57890099,226.65,226.57,6.57890099]
[1734043101642,6.57890099,226.65,226.59,6.57890099]
[1734043101837,6.57890099,226.67,226.62,2.2057]
[1734043102346,2.18,226.69,226.63,2.2056]
[1734043102538,6.57890099,226.68,226.63,2.2056]
[1734043103040,6.57890099,226.68,226.64,2.2055]
[1734043104437,6.57890099,226.68,226.65,2.2054]
[1734043105547,6.57890099,226.68,226.63,2.2056]
[1734043106640,6.57890099,226.68,226.64,2.2055]
[1734043108549,6.57890099,226.68,226.65,2.2054]
[1734043108745,6.57890099,226.7,226.65,2.2054]
[1734043108938,6.57890099,226.68,226.59,2.18]
[1734043109142,8.78410099,226.68,226.62,2.2056]
[1734043110548,8.78410099,226.68,226.63,2.2056]
[1734043110745,2.2051,226.7,226.63,6.57890099]
[1734043110947,6.57890099,226.69,226.63,6.57890099]
[1734043111942,6.57890099,226.69,226.65,2.2054]
[1734043113747,2.2048,226.73,226.67,2.2052]
[1734043114047,6.57890099,226.74,226.67,6.57890099]
[1734043114454,8.78350099,226.74,226.69,2.205]
[1734043116754,4.2099,226.75,226.67,6.57890099]
[1734043116954,2.7888,226.75,226.71,2.2049]
[1734043117362,6.57890099,226.72,226.6,5.18342912]
[1734043117859,6.57890099,226.72,226.64,6.57890099]
[1734043118554,2.205,226.7,226.64,8.78440099]
[1734043118755,6.57890099,226.74,226.66,6.57890099]
[1734043119356,2.7888,226.75,226.66,6.57890099]
[1734043119656,2.2048,226.72,226.66,6.57890099]
[1734043120555,2.2048,226.72,226.66,8.78420099]
[1734043120760,2.2047,226.73,226.68,6.57890099]
[1734043121250,2.4,226.81,226.7,6.57890099]
[1734043121458,6.57890099,226.79,226.7,6.57890099]
[1734043121660,6.57890099,226.79,226.71,2.2049]
[1734043121957,2.2044,226.76,226.69,6.57890099]
[1734043122562,2.2044,226.77,226.71,2.2048]
[1734043122859,5.38121028,226.8,226.69,2.4]
[1734043122860,6.57890099,226.8,226.69,2.4]
[1734043123060,6.57890099,226.8,226.72,6.57890099]
[1734043124061,1.3614,226.82,226.76,6.57890099]
[1734043124263,1.3614,226.82,226.69,2.4]
[1734043124562,1.3614,226.82,226.74,6.57890099]
[1734043125059,2.204,226.8,226.74,8.78350099]
[1734043125561,2.2042,226.78,226.72,2.2047]
[1734043125861,6.57890099,226.81,226.72,8.78360099]
[1734043126162,1.3614,226.82,226.74,6.57890099]
[1734043127553,1.3614,226.82,226.75,2.2045]
[1734043127957,1.3322,226.84,226.76,6.57890099]
[1734043128660,1.3322,226.84,226.77,2.2043]
[1734043129068,2.2035,226.85,226.77,2.2043]
[1734043129662,8.78230099,226.86,226.78,8.78310099]
[1734043130760,2.2034,226.86,226.78,8.78310099]
[1734043130963,8.78230099,226.86,226.78,8.78310099]
[1734043131264,2.2035,226.85,226.78,8.78310099]
[1734043131464,2.2035,226.85,226.78,6.57890099]
[1734043133565,2.2035,226.85,226.8,6.57890099]
[1734043134162,2.2035,226.85,226.78,6.57890099]
[1734043134668,2.58,226.88,226.8,6.57890099]
[1734043134868,1.3799,226.94,226.8,6.57890099]
[1734043135068,9.15890099,226.9,226.82,6.57890099]
[1734043136567,2.2031,226.89,226.82,6.57890099]
[1734043136763,6.57890099,226.92,226.84,6.57890099]
[1734043137664,6.57890099,226.92,226.81,2.58]
[1734043137862,6.57890099,226.9,226.82,6.57890099]
[1734043138260,6.57890099,226.9,226.82,8.78260099]
[1734043138466,6.57890099,226.92,226.84,6.57890099]
[1734043138973,2.2031,226.89,226.84,6.57890099]
[1734043148476,2.2031,226.9,226.86,6.57890099]
[1734043148672,6.57890099,226.93,226.86,6.57890099]
[1734043149581,2.203,226.91,226.86,6.57890099]
[1734043150277,2.2028,226.93,226.86,6.57890099]
[1734043150483,6.57890099,226.94,226.88,6.57890099]
[1734043150784,3.9099,226.95,226.88,6.57890099]
[1734043150983,2.2028,226.93,226.88,6.57890099]
[1734043152078,1.3299,226.95,226.88,6.57890099]
[1734043152385,1.3299,226.95,226.76,2.818]
[1734043152386,6.57890099,226.99,226.9,6.57890099]
[1734043152686,6.57890099,226.99,226.92,6.57890099]
[1734043153582,2.2024,226.97,226.92,8.78170099]
[1734043155481,6.57890099,226.99,226.93,2.2027]
[1734043155989,5.35335449,227.02,226.93,2.2027]
[1734043156189,6.57890099,227.0,226.93,2.2027]
[1734043156688,9.15890099,227.02,226.94,8.78150099]
[1734043156982,6.57890099,227.02,226.94,8.78150099]
[1734043157186,3.9246,227.03,226.88,2.7675]
[1734043157187,1.3446,227.03,226.98,6.57890099]
[1734043157487,6.57890099,227.06,226.98,6.57890099]
[1734043157685,2.2017,227.04,226.99,2.2021]
[1734043157986,6.57890099,227.06,226.98,6.57890099]
[1734043158487,8.78040099,227.06,227.0,2.202]
[1734043159880,2.2013,227.08,227.0,6.57890099]
[1734043160084,2.2013,227.08,227.02,6.57890099]
[1734043161592,2.2013,227.08,227.04,6.57890099]
[1734043163688,1.4513,227.14,226.96,4.1422]
[1734043163689,6.57890099,227.14,227.06,6.57890099]
[1734043163893,9.15890099,227.14,227.06,6.57890099]
[1734043164089,1.397,227.21,227.06,8.78040099]
[1734043164090,2.201,227.11,227.06,8.78040099]
[1734043165092,2.201,227.11,227.06,2.2015]
[1734043165292,151.68579329,227.27,227.07,6.57890099]
[1734043165490,6.57890099,227.16,227.07,6.57890099]
[1734043165995,2.2009,227.13,227.08,2.2013]
[1734043167386,2.2009,227.12,227.08,2.2013]
[1734043167794,2.2009,227.12,227.07,6.57890099]
[1734043169698,2.2009,227.12,227.07,8.78030099]
[1734043170902,6.57890099,227.16,227.07,8.78030099]
[1734043170903,2.2007,227.15,227.11,6.57890099]
[1734043171103,9.15890099,227.19,227.11,6.57890099]
[1734043171295,6.57890099,227.19,227.11,6.57890099]
[1734043171498,2.2007,227.15,227.11,6.57890099]
[1734043171796,2.7602,227.23,227.11,6.57890099]
[1734043172004,6.57890099,227.21,227.13,6.57890099]
[1734043172191,2.2006,227.16,227.13,6.57890099]
[1734043175492,1.3308,227.23,227.13,6.57890099]
[1734043175695,1.3308,227.23,227.11,2.58]
[1734043175696,4.3984,227.3,227.15,6.57890099]
[1734043175894,6.57890099,227.24,227.15,6.57890099]
[1734043176095,6.57890099,227.24,227.17,6.57890099]
[1734043176596,2.2002,227.19,227.17,6.57890099]
[1734043177193,6.57890099,227.25,227.17,6.57890099]
[1734043177699,6.57890099,227.26,227.19,6.57890099]
[1734043177899,11.75107284,227.27,227.19,6.57890099]
[1734043178302,5.17217185,227.27,227.19,6.57890099]
[1734043178500,11.75107284,227.27,227.19,6.57890099]
[1734043179697,3.9929,227.29,227.19,6.57890099]
[1734043179897,6.57890099,227.28,227.21,6.57890099]
[1734043180402,1.4129,227.29,227.23,6.57890099]
[1734043180996,2.1996,227.26,227.23,6.57890099]
[1734043182503,1.4543,227.36,227.25,6.57890099]
[1734043182701,6.57890099,227.36,227.27,6.57890099]
[1734043183107,2.1989,227.33,227.29,6.57890099]
[1734043183401,2.58,227.38,227.31,6.57890099]
[1734043183804,2.1986,227.36,227.31,6.57890099]
[1734043184103,6.57890099,227.41,227.33,6.57890099]
[1734043184398,2.1986,227.36,227.33,6.57890099]
[1734043185199,10.65129997,227.44,227.35,6.57890099]
[1734043185399,2.1984,227.38,227.35,6.57890099]
[1734043186304,6.57890099,227.45,227.37,6.57890099]
[1734043186805,6.57890099,227.48,227.39,6.57890099]
[1734043187204,6.59,227.56,227.43,6.57890099]
[1734043187404,2.8393,227.55,227.43,6.57890099]
[1734043187601,6.57890099,227.5,227.43,6.57890099]
[1734043188703,2.6,227.53,227.43,6.57890099]
[1734043189004,5.35625048,227.49,227.43,6.57890099]
[1734043189607,2.6,227.54,227.43,6.57890099]
[1734043189801,2.6,227.54,227.45,6.57890099]
[1734043189998,2.8393,227.55,227.45,6.57890099]
[1734043190200,6.57890099,227.54,227.45,6.57890099]
[1734043190401,6.57890099,227.5,227.43,2.6]
[1734043190602,2.6,227.51,227.35,2.6]
[1734043190808,6.57890099,227.48,227.39,6.57890099]
[1734043191907,2.6,227.5,227.41,6.57890099]
[1734043192206,6.57890099,227.49,227.41,6.57890099]
[1734043192508,8.21771646,227.55,227.41,6.57890099]
[1734043192707,2.6,227.54,227.41,6.57890099]
[1734043192901,2.1979,227.43,227.41,6.57890099]
[1734043193809,2.1975,227.47,227.41,6.57890099]
[1734043194003,6.57890099,227.5,227.36,5.28371474]
[1734043194204,6.57890099,227.5,227.4,6.57890099]
[1734043194405,2.6,227.54,227.42,6.57890099]
[1734043194707,2.1978,227.44,227.42,6.57890099]
[1734043195109,5.37841646,227.55,227.43,6.57890099]
[1734043195411,11.95731745,227.55,227.46,6.57890099]
[1734043196011,2.1974,227.49,227.46,6.57890099]
[1734043197713,2.1971,227.51,227.46,6.57890099]
[1734043198012,5.37841646,227.55,227.46,6.57890099]
[1734043198515,2.1973,227.49,227.46,6.57890099]
[1734043200313,6.57890099,227.5,227.36,8.09184474]
[1734043200517,6.57890099,227.5,227.42,6.57890099]
[1734043200920,2.1979,227.43,227.42,6.57890099]
[1734043201119,1.3738,227.51,227.4,6.57890099]
[1734043201120,6.57890099,227.48,227.4,6.57890099]
[1734043201620,2.1981,227.41,227.4,6.57890099]
[1734043201822,2.1981,227.41,227.38,6.57890099]
[1734043202011,2.6,227.44,227.38,6.57890099]
[1734043202217,2.1983,227.39,227.36,0.20813]
[1734043202412,9.17890099,227.44,227.36,0.20813]
[1734043202624,6.57890099,227.42,227.36,0.20813]
[1734043202922,2.1985,227.37,227.36,0.20813]
[1734043203720,2.6,227.38,227.31,6.57890099]
[1734043204426,6.57890099,227.36,227.29,6.57890099]
[1734043205320,2.1987,227.35,227.26,10.22067087]
[1734043205616,2.6,227.38,227.26,10.22067087]
[1734043205822,12.82067087,227.38,227.23,10.22067087]
[1734043206022,1.3759,227.37,227.23,10.22067087]
[1734043206321,2.1994,227.27,227.23,10.22067087]
[1734043207023,2.6,227.33,227.23,10.22067087]
[1734043207024,2.1993,227.29,227.23,10.22067087]
[1734043207218,2.6,227.33,227.23,10.22067087]
[1734043208218,2.1994,227.27,227.23,10.22067087]
[1734043208919,2.6,227.33,227.23,10.22067087]
[1734043208920,2.1995,227.26,227.23,10.22067087]
[1734043209517,2.6,227.33,227.2,10.22067087]
[1734043209718,2.1996,227.25,227.2,10.22067087]
[1734043209921,2.6,227.33,227.2,10.22067087]
[1734043211528,1.4097,227.36,227.24,10.22067087]
[1734043212319,2.1988,227.34,227.27,2.1994]
[1734043213130,2.1989,227.33,227.27,2.1994]
[1734043213823,2.199,227.32,227.22,10.22067087]
[1734043214129,2.199,227.32,227.26,2.1995]
[1734043215620,2.199,227.32,227.27,2.1994]
[1734043218229,2.1988,227.34,227.28,2.1993]
[1734043218424,2.56,227.38,227.25,10.22067087]
[1734043218732,2.56,227.38,227.18,5.16227395]
[1734043218733,2.1985,227.37,227.31,2.199]
[1734043219025,2.1985,227.37,227.28,10.22067087]
[1734043219230,2.56,227.41,227.29,1.4594]
[1734043219725,2.1983,227.39,227.33,2.1988]
[1734043220531,2.1984,227.38,227.33,2.1988]
[1734043222027,2.1982,227.4,227.35,2.1987]
[1734043222326,2.56,227.41,227.29,1.4594]
[1734043222529,1.3541,227.46,227.35,10.22067087]
[1734043223328,2.1977,227.46,227.38,10.22067087]
[1734043224123,2.1975,227.47,227.41,2.198]
[1734043224323,2.56,227.49,227.41,2.198]
[1734043226529,2.1976,227.46,227.41,2.198]
[1734043227126,2.1976,227.46,227.41,8.73228544]
[1734043228035,2.1978,227.44,227.41,6.53428544]
[1734043228338,2.1978,227.44,227.39,2.1982]
[1734043228339,2.1978,227.44,227.39,8.73248544]
[1734043228536,2.1978,227.44,227.39,6.53428544]
[1734043229241,2.1979,227.43,227.39,6.53428544]
[1734043229632,6.53428544,227.47,227.39,6.53428544]
[1734043229936,2.198,227.42,227.39,6.53428544]
[1734043230134,6.53428544,227.48,227.39,6.53428544]
[1734043230833,2.1979,227.43,227.39,6.53428544]
[1734043231737,2.198,227.42,227.41,6.53428544]
[1734043232237,2.1979,227.44,227.41,6.53428544]
[1734043235635,2.1977,227.46,227.41,6.53428544]
[1734043236734,2.1977,227.46,227.41,8.73238544]
[1734043238140,2.198,227.42,227.39,6.53428544]
[1734043238338,6.53428544,227.48,227.39,6.53428544]
[1734043238542,2.1979,227.43,227.39,8.73258544]
[1734043238742,6.53428544,227.48,227.39,8.73258544]
[1734043239139,2.1978,227.45,227.39,8.73258544]
[1734043239336,6.53428544,227.48,227.39,8.73258544]
[1734043240237,2.1978,227.44,227.39,8.73258544]
[1734043242743,2.1979,227.43,227.39,8.73258544]
[1734043243947,2.56,227.47,227.33,2.56]
[1734043244249,2.198,227.42,227.37,8.73268544]
[1734043246652,2.1981,227.41,227.37,8.73268544]
[1734043251955,2.1981,227.41,227.39,6.53428544]
[1734043255957,2.48,227.46,227.39,6.53428544]
[1734043256167,2.1982,227.4,227.39,6.53428544]
[1734043263068,6.53428544,227.45,227.37,6.53428544]
[1734043263367,1.3523,227.45,227.37,6.53428544]
[1734043263559,2.1981,227.41,227.39,6.53428544]
[1734043266164,2.48,227.46,227.39,6.53428544]
[1734043266371,2.198,227.42,227.39,6.53428544]
[1734043269366,2.1981,227.41,227.39,6.53428544]
[1734043270273,2.198,227.42,227.39,6.53428544]
[1734043271375,182.02295195,227.55,227.41,6.53428544]
[1734043271574,1.429,227.6,227.52,6.53428544]
[1734043271773,1.429,227.6,227.54,6.53428544]
[1734043271969,21.60167161,227.6,227.56,6.53428544]
[1734043272277,2.6765,227.62,227.58,6.53428544]
[1734043272875,16.58567294,227.62,227.58,6.53428544]
[1734043273078,4.8726,227.62,227.58,6.53428544]
[1734043273578,2.1959,227.64,227.58,6.53428544]
[1734043273778,2.1959,227.64,227.6,6.53428544]
[1734043273975,2.48,227.65,227.6,6.53428544]
[1734043274181,1.429,227.66,227.62,6.53428544]
[1734043274482,1.429,227.66,227.64,6.53428544]
[1734043276079,2.1955,227.68,227.64,6.53428544]
[1734043277776,5.35844471,227.7,227.64,6.53428544]
[1734043277982,2.1956,227.67,227.64,6.53428544]
[1734043283787,2.1956,227.67,227.61,2.1961]
[1734043283788,6.53428544,227.65,227.54,5.37929625]
[1734043283980,6.53428544,227.65,227.59,6.53428544]
[1734043283981,2.196,227.63,227.59,6.53428544]
[1734043287288,6.53428544,227.67,227.59,6.53428544]
[1734043287484,2.1961,227.62,227.59,6.53428544]
[1734043292089,2.1961,227.62,227.57,8.73078544]
[1734043293588,2.1962,227.61,227.57,6.53428544]
[1734043293787,3.8113,227.69,227.59,6.53428544]
[1734043293986,5.38576277,227.73,227.63,6.53428544]
[1734043294291,6.53428544,227.71,227.63,6.53428544]
[1734043294590,2.1954,227.69,227.65,2.1958]
[1734043295490,2.36,227.73,227.65,6.53428544]
[1734043295686,2.1953,227.71,227.66,2.1957]
[1734043296489,6.53428544,227.72,227.65,6.53428544]
[1734043296688,2.1953,227.7,227.65,8.72998544]
[1734043301292,2.1954,227.69,227.65,2.1957]
[1734043301490,2.1954,227.69,227.65,8.72998544]
[1734043303487,6.53428544,227.78,227.67,6.53428544]
[1734043303686,6.53428544,227.78,227.7,6.53428544]
[1734043304584,2.1951,227.73,227.7,6.53428544]
[1734043304994,2.1951,227.73,227.69,2.1954]
[1734043309994,2.1951,227.73,227.69,4.4154]
[1734043310389,2.1951,227.73,227.69,2.1954]
[1734043310696,2.22,227.77,227.63,8.73018544]
[1734043310697,2.1956,227.67,227.63,8.73018544]
[1734043310900,2.1956,227.67,227.63,6.53428544]
[1734043311896,2.1957,227.66,227.61,2.22]
[1734043312097,2.1957,227.66,227.62,6.53428544]
[1734043312893,6.53428544,227.63,227.46,28.48273973]
[1734043313093,1.3449,227.76,227.48,6.53428544]
[1734043313094,6.53428544,227.57,227.48,6.53428544]
[1734043313293,2.1972,227.5,227.49,5.29313635]
[1734043315799,2.22,227.54,227.44,1.3612]
[1734043316004,2.1974,227.48,227.47,6.53428544]
[1734043317598,2.1974,227.48,227.47,11.86203859]
[1734043317994,6.53428544,227.52,227.28,28.49938242]
[1734043318201,6.53428544,227.52,227.43,6.53428544]
[1734043318901,2.1973,227.5,227.43,6.53428544]
[1734043319199,2.22,227.49,227.43,6.53428544]
[1734043319595,2.22,227.49,227.42,5.22910082]
[1734043320404,2.198,227.43,227.41,6.53428544]
[1734043320599,2.22,227.49,227.41,6.53428544]
[1734043321000,2.1975,227.47,227.41,6.53428544]
[1734043321201,2.22,227.49,227.41,6.53428544]
[1734043322005,2.1975,227.48,227.41,2.1981]
[1734043322304,1.3627,227.57,227.44,6.53428544]
[1734043322502,6.53428544,227.54,227.46,6.53428544]
[1734043322894,6.53428544,227.54,227.47,6.53428544]
[1734043322895,2.1971,227.52,227.47,6.53428544]
[1734043324699,2.1971,227.51,227.47,6.53428544]
[1734043325499,2.197,227.53,227.47,8.73178544]
[1734043325701,6.53428544,227.55,227.47,2.1975]
[1734043325897,6.53428544,227.55,227.44,2.22]
[1734043326103,2.197,227.52,227.47,6.53428544]
[1734043327311,2.1972,227.5,227.46,6.53428544]
[1734043328003,6.53428544,227.55,227.46,6.53428544]
[1734043328004,2.22,227.55,227.46,6.53428544]
[1734043328203,8.75428544,227.55,227.46,6.53428544]
[1734043329107,2.1972,227.5,227.46,6.53428544]
[1734043331307,2.1971,227.52,227.46,8.73188544]
[1734043331607,2.22,227.55,227.46,8.73188544]
[1734043331999,2.22,227.55,227.48,6.53428544]
[1734043333400,2.1968,227.55,227.5,6.53428544]
[1734043334505,2.1968,227.55,227.5,8.73148544]
[1734043335410,2.1968,227.54,227.5,8.73148544]
[1734043335609,2.1968,227.54,227.52,6.53428544]
[1734043336705,2.1965,227.58,227.52,6.53428544]
[1734043336907,8.75428544,227.6,227.52,6.53428544]
[1734043337208,8.75428544,227.6,227.5,6.53428544]
[1734043337511,2.1969,227.53,227.5,6.53428544]
[1734043337811,2.1969,227.53,227.49,4.4173]
[1734043338010,2.1969,227.53,227.5,6.53428544]
[1734043342219,2.1969,227.53,227.52,5.28221439]
[1734043349821,2.22,227.6,227.52,5.28221439]
[1734043350028,2.1968,227.55,227.52,5.28221439]
[1734043350229,6.53428544,227.58,227.52,5.28221439]
[1734043351229,2.22,227.6,227.52,5.28221439]
[1734043351440,6.53428544,227.58,227.52,5.28221439]
[1734043352331,2.1969,227.53,227.52,5.28221439]
[1734043355935,6.53428544,227.58,227.49,8.75428544]
[1734043356236,2.1971,227.51,227.49,8.75428544]
[1734043357236,2.1971,227.51,227.49,6.53428544]
[1734043359641,2.22,227.6,227.49,6.53428544]
[1734043359840,2.1971,227.52,227.49,6.53428544]
[1734043368339,2.1971,227.52,227.48,2.1974]
[1734043371346,2.1971,227.51,227.46,10.93178544]
[1734043371541,2.1971,227.51,227.46,8.73428544]
[1734043372145,2.1971,227.51,227.47,2.1974]
[1734043372348,2.1971,227.51,227.46,8.73428544]
[1734043373548,6.53428544,227.54,227.46,4.3975]
[1734043373752,2.1972,227.5,227.46,2.1975]
[1734043374145,2.1972,227.5,227.46,8.73178544]
[1734043374541,2.1972,227.5,227.46,2.1975]
[1734043374741,2.1972,227.5,227.46,8.73178544]
[1734043377453,2.1972,227.5,227.46,2.1975]
[1734043377755,2.1972,227.5,227.46,8.73178544]
[1734043383749,2.1976,227.46,227.42,2.1979]
[1734043383956,2.1976,227.46,227.42,8.73218544]
[1734043384856,2.1976,227.46,227.42,2.1979]
[1734043385158,2.1976,227.46,227.42,8.73218544]
[1734043385760,2.1976,227.46,227.42,6.53428544]
[1734043386755,2.1976,227.46,227.41,2.1981]
[1734043386962,6.53428544,227.5,227.43,6.53428544]
[1734043387264,2.2,227.51,227.43,6.53428544]
[1734043387463,6.53428544,227.5,227.43,6.53428544]
[1734043387764,2.1977,227.45,227.43,6.53428544]
[1734043388462,2.1977,227.45,227.41,2.1981]
[1734043388666,2.1977,227.45,227.42,6.53428544]
[1734043392963,6.53428544,227.5,227.42,6.53428544]
[1734043393164,2.1976,227.46,227.42,6.53428544]
[1734043397467,2.1976,227.46,227.42,8.73228544]
[1734043400171,2.1973,227.49,227.45,2.1976]
[1734043400472,8.71428544,227.5,227.42,6.53428544]
[1734043401570,2.1975,227.47,227.42,8.73218544]
[1734043403871,2.1975,227.47,227.42,2.1979]
[1734043404166,8.71428544,227.5,227.43,6.53428544]
[1734043405168,2.1975,227.47,227.43,6.53428544]
[1734043405464,2.1975,227.47,227.44,5.3765244]
[1734043406673,6.53428544,227.52,227.45,6.53428544]
[1734043406860,2.18,227.52,227.44,5.3765244]
[1734043407065,2.1974,227.49,227.44,7.5743244]
[1734043407269,2.18,227.51,227.44,5.3765244]
[1734043407668,6.53428544,227.5,227.44,5.3765244]
[1734043408771,2.1975,227.47,227.44,5.3765244]
[1734043410677,6.53428544,227.5,227.44,5.3765244]
[1734043410865,2.1974,227.48,227.44,5.3765244]
[1734043415772,2.1974,227.48,227.45,6.53428544]
[1734043416976,2.1974,227.48,227.44,11.91080984]
[1734043417977,2.1972,227.51,227.46,6.53428544]
[1734043418181,2.18,227.53,227.48,6.53428544]
[1734043418375,2.18,227.53,227.46,6.53428544]
[1734043419675,2.1972,227.5,227.46,6.53428544]
[1734043422076,2.1972,227.5,227.44,14.10850984]
[1734043422583,2.18,227.53,227.44,11.91080984]
[1734043422584,2.1971,227.52,227.44,11.91080984]
[1734043423273,2.1971,227.52,227.46,2.1976]
[1734043423483,2.1971,227.52,227.44,11.91080984]
[1734043424579,2.1971,227.52,227.47,2.1975]
[1734043428884,2.1971,227.51,227.46,2.1976]
[1734043429186,6.53428544,227.53,227.44,11.91080984]
[1734043429485,6.53428544,227.53,227.46,6.53428544]
[1734043430389,2.18,227.54,227.46,6.53428544]
[1734043430580,2.1971,227.52,227.47,2.1975]
[1734043431489,2.18,227.55,227.46,6.53428544]
[1734043431683,2.18,227.55,227.48,6.53428544]
[1734043431987,6.53428544,227.56,227.48,6.53428544]
[1734043432178,6.53428544,227.56,227.44,7.5565244]
[1734043432179,151.68579329,227.65,227.55,6.53428544]
[1734043432378,6.53428544,227.7,227.6,6.53428544]
[1734043432580,7.98358544,227.72,227.62,6.53428544]
[1734043432789,20.17844955,227.71,227.62,6.53428544]
[1734043432983,11.73529238,227.7,227.62,6.53428544]
[1734043433282,7.98358544,227.72,227.62,6.53428544]
[1734043433683,2.1954,227.69,227.62,8.73028544]
[1734043434889,1.4493,227.72,227.62,8.73028544]
[1734043435187,2.1955,227.68,227.62,8.73028544]
[1734043435386,2.18,227.74,227.65,2.1957]
[1734043435582,2.1953,227.7,227.64,6.53428544]
[1734043435781,6.53428544,227.73,227.64,6.53428544]
[1734043436390,2.1952,227.71,227.65,2.1957]
[1734043438292,2.1953,227.7,227.64,6.53428544]
[1734043439789,2.1953,227.7,227.64,8.73008544]
[1734043442394,2.1953,227.7,227.65,5.29484169]
[1734043450606,6.53428544,227.86,227.69,6.53428544]
[1734043450796,0.67684253,227.85,227.67,1.3352]
[1734043450998,2.194,227.83,227.73,2.195]
[1734043451197,6.53428544,227.85,227.78,6.53428544]
[1734043451396,1.4169,227.89,227.77,6.53428544]
[1734043451602,0.67695111,227.88,227.77,6.53428544]
[1734043451807,6.53428544,227.86,227.77,6.53428544]
[1734043451998,6.53428544,227.86,227.78,2.1945]
[1734043452198,3.5969,227.89,227.78,2.1945]
[1734043452399,6.53428544,227.86,227.77,6.53428544]
[1734043452807,6.53428544,227.86,227.79,2.1944]
[1734043453003,2.1936,227.88,227.79,6.53428544]
[1734043453209,6.53428544,227.87,227.79,6.53428544]
[1734043454402,1.4169,227.89,227.77,5.33765184]